bitfinex/quotes_ETHUSD_20250925
["timestamp","ask_amount","ask_price","bid_price","bid_amount"]
[1758819747247,2.53413774,3946.2,3945.6,4.521]
[1758819747557,6.43590894,3946.1,3945.6,7.05546864]
[1758819747765,3.437761,3946.0,3945.7,2.5343593]
[1758819747939,0.02687594,3946.3,3945.7,0.7182]
[1758819748144,6.713057,3946.2,3945.9,2.53422989]
[1758819748351,6.626207,3946.5,3945.7,1.24212]
[1758819748552,6.95608294,3946.4,3945.9,2.53425939]
[1758819748752,6.616057,3946.3,3945.9,2.53425939]
[1758819748953,6.849207,3946.5,3945.9,2.53425939]
[1758819749170,0.02687594,3946.4,3945.7,0.52392]
[1758819749374,21.634141,3946.3,3945.2,2.356]
[1758819749671,2.56097563,3946.2,3945.3,4.52]
[1758819749842,20.230569,3946.1,3945.5,2.53451314]
[1758819750043,0.02687594,3946.0,3945.2,2.111]
[1758819750365,2.53453514,3945.5,3945.2,2.111]
[1758819750539,9.29254394,3945.4,3945.2,2.111]
[1758819750876,4.293344,3945.3,3945.2,2.111]
[1758819751076,4.89945,3945.3,3945.2,2.111]
[1758819751371,2.5340192,3946.3,3945.3,2.53461348]
[1758819751574,0.02687594,3946.2,3945.6,2.53445767]
[1758819751778,3.44746,3946.1,3945.7,4.52]
[1758819751979,0.02687594,3946.0,3945.6,2.53445767]
[1758819752169,2.53387363,3946.6,3945.8,4.52]
[1758819752368,3.29492694,3946.5,3945.9,2.53421299]
[1758819752573,4.503039,3946.4,3945.8,4.52]
[1758819752748,0.02687594,3946.3,3945.8,4.52]
[1758819752950,5.09066841,3946.3,3945.5,0.002]
[1758819753145,6.32562884,3947.0,3945.6,4.52]
[1758819753465,5.53369818,3946.8,3945.8,2.53432664]
[1758819753667,3.0,3946.6,3945.9,2.53426865]
[1758819753862,8.54339394,3946.5,3945.7,2.80472428]
[1758819754177,5.53384573,3946.6,3945.5,0.002]
[1758819754178,8.633853,3946.4,3945.5,0.002]
[1758819754371,2.53413049,3946.2,3945.7,4.519]
[1758819754571,16.55215794,3946.1,3945.7,4.519]
[1758819754878,7.164467,3945.7,3945.5,0.002]
[1758819755078,1.03694306,3946.3,3945.5,0.002]
[1758819755301,0.02687594,3946.5,3945.7,2.53440454]
[1758819755461,0.02687594,3947.2,3945.8,1.04770385]
[1758819755781,2.53364583,3946.9,3946.2,2.53404861]
[1758819756090,0.02687594,3946.8,3946.3,7.05297675]
[1758819756253,2.53351177,3947.1,3946.3,4.519]
[1758819756447,3.767,3947.4,3946.1,2.112]
[1758819756448,3.0,3946.9,3946.1,2.112]
[1758819756766,0.1264,3946.4,3946.2,4.519]
[1758819756971,0.1264,3946.4,3946.3,2.5340192]
[1758819757671,0.1264,3946.4,3946.2,5.2372]
[1758819757875,0.1264,3946.4,3946.2,7.05307038]
[1758819758074,0.1264,3946.4,3946.3,2.5340192]
[1758819758370,0.1264,3946.9,3946.7,2.53375568]
[1758819758572,0.1264,3946.9,3946.7,4.518]
[1758819758751,0.1264,3946.9,3946.8,4.518]
[1758819758948,0.02687594,3947.0,3946.8,4.518]
[1758819759278,0.02687594,3947.0,3946.1,2.112]
[1758819759279,0.1264,3946.8,3946.6,4.518]
[1758819759473,2.53359161,3947.0,3946.2,0.245]
[1758819759474,0.1264,3946.5,3946.4,2.53393344]
[1758819759649,0.1264,3946.5,3946.4,7.05193344]
[1758819759850,0.1264,3946.5,3946.4,7.29693344]
[1758819760081,0.1264,3946.5,3946.4,7.77013344]
[1758819760383,0.1264,3946.5,3946.4,3.25213344]
[1758819760683,0.1264,3946.5,3946.4,7.77013344]
[1758819761185,0.1264,3946.5,3946.1,2.112]
[1758819761186,0.1264,3946.5,3946.1,4.64609947]
[1758819761370,4.066472,3946.4,3946.1,2.112]
[1758819761559,13.544194,3946.3,3946.2,4.517]
[1758819761764,9.336539,3946.3,3946.2,4.517]
[1758819761988,2.53364098,3946.9,3946.2,4.517]
[1758819761989,12.42477733,3946.6,3946.2,4.517]
[1758819762186,2.66053337,3946.2,3945.5,2.53652471]
[1758819762361,9.36341494,3946.5,3945.6,2.53446877]
[1758819762362,0.1264,3945.7,3945.6,2.53446877]
[1758819762553,0.1264,3945.7,3945.5,0.002]
[1758819762751,8.683483,3945.6,3945.5,0.002]
[1758819763155,6.433801,3945.6,3945.5,0.002]
[1758819763461,5.614946,3945.6,3945.5,0.002]
[1758819763666,4.706946,3945.6,3945.5,0.002]
[1758819763875,4.73382194,3945.6,3945.5,0.002]
[1758819764388,7.517,3946.7,3945.6,2.53446877]
[1758819764586,10.11560697,3946.6,3945.7,4.517]
[1758819764786,3.0,3946.7,3945.7,4.517]
[1758819765090,16.73443894,3946.6,3945.5,1.39865785]
[1758819765264,2.53395499,3946.4,3945.5,0.002]
[1758819765465,4.06651694,3946.3,3945.5,0.002]
[1758819765762,0.02687594,3946.3,3945.7,2.53434442]
[1758819765954,0.02687594,3946.4,3945.5,0.25964533]
[1758819766152,0.02687594,3946.6,3945.6,0.28980921]
[1758819766387,0.02687594,3946.6,3945.9,2.53427179]
[1758819766588,2.56071374,3946.6,3945.7,2.53440454]
[1758819766885,6.07019535,3946.5,3945.8,2.53434031]
[1758819767086,0.02687594,3946.6,3945.5,0.002]
[1758819767087,4.06716994,3946.4,3945.5,0.002]
[1758819767393,2.53409055,3946.2,3945.5,2.53651885]
[1758819767554,0.02687594,3946.1,3945.5,0.002]
[1758819767759,2.06,3946.0,3945.7,2.53435665]
[1758819767983,2.06,3946.0,3945.7,2.53437694]
[1758819768287,3.097641,3946.0,3945.7,2.53438582]
[1758819768487,0.02687594,3946.3,3945.7,2.53438582]
[1758819768690,3.227929,3946.2,3945.8,2.53431978]
[1758819768985,0.02687594,3946.1,3945.7,2.53440364]
[1758819769186,0.02687594,3946.1,3945.8,2.53432292]
[1758819769187,7.19,3946.0,3945.8,2.53432292]
[1758819769396,7.19,3946.0,3945.9,2.53427608]
[1758819769572,7.19,3946.0,3945.6,2.76674167]
[1758819769767,7.19,3946.0,3945.9,2.76657608]
[1758819769976,7.19,3946.0,3945.9,4.7473]
[1758819770212,7.19,3946.0,3945.9,7.04927608]
[1758819770796,7.19,3946.0,3945.9,7.74057608]
[1758819770994,7.19,3946.0,3945.5,0.002]
[1758819771291,13.69201294,3945.9,3945.8,0.002]
[1758819771490,19.108723,3945.9,3945.8,0.002]
[1758819771695,12.688484,3945.9,3945.8,0.002]
[1758819771916,7.19,3945.9,3945.8,0.002]
[1758819772063,2.53827608,3945.9,3945.8,0.002]
[1758819772271,21.46875402,3945.9,3945.8,0.002]
[1758819772598,33.04477608,3945.9,3945.8,0.002]
[1758819772898,11.03497608,3945.9,3945.8,0.002]
[1758819773403,28.84962108,3945.9,3945.8,0.002]
[1758819773561,24.48832608,3945.9,3945.8,0.002]
[1758819773965,30.11134108,3945.9,3945.8,0.002]
[1758819774191,25.80443408,3945.9,3945.8,0.002]
[1758819774394,11.704,3946.1,3945.8,0.002]
[1758819774600,0.02687594,3946.0,3945.8,0.002]
[1758819775084,4.513,3946.8,3946.1,2.53410385]
[1758819775285,0.1264,3946.1,3945.9,0.6913]
[1758819775599,0.1264,3946.1,3946.0,3.22545555]
[1758819775795,0.1264,3946.1,3946.0,0.6913]
[1758819775999,0.1264,3946.1,3946.0,7.73851186]
[1758819776669,0.02687594,3946.9,3946.0,0.6913]
[1758819776870,3.323222,3946.8,3946.4,2.53391072]
[1758819777065,0.1264,3946.4,3946.3,2.5340192]
[1758819777802,0.1264,3946.4,3946.3,7.0470192]
[1758819777969,0.1264,3946.4,3946.3,2.5340192]
[1758819778307,0.1264,3946.4,3946.3,7.0460192]
[1758819778491,0.1264,3946.4,3946.3,4.512]
[1758819778690,8.926717,3946.3,3946.0,2.112]
[1758819779003,0.02687594,3946.2,3946.0,2.112]
[1758819779167,0.02687594,3946.2,3946.0,6.624]
[1758819779168,9.699736,3946.1,3946.0,6.624]
[1758819779572,9.933736,3946.2,3946.0,6.624]
[1758819779803,0.02687594,3946.1,3946.0,6.624]
[1758819779976,10.09161394,3946.1,3946.0,2.112]
[1758819780178,0.792,3946.7,3946.0,2.112]
[1758819780384,3.75209094,3946.6,3946.0,2.112]
[1758819780578,2.72405441,3947.4,3946.0,2.112]
[1758819780579,0.02687594,3946.8,3946.4,2.53390225]
[1758819780904,0.1264,3946.4,3946.3,2.53401431]
[1758819781080,0.02687594,3947.0,3946.4,2.53390151]
[1758819781266,5.224723,3946.9,3946.5,4.511]
[1758819781469,0.02687594,3946.8,3946.0,2.112]
[1758819781669,24.37491527,3946.7,3946.0,2.112]
[1758819781889,21.48168194,3946.6,3946.1,4.511]
[1758819782089,22.005806,3946.5,3946.0,2.112]
[1758819782289,0.02687594,3946.4,3946.0,2.112]
[1758819782490,3.58202594,3946.4,3946.0,2.112]
[1758819782716,5.846314,3946.3,3946.0,2.112]
[1758819782901,0.02687594,3946.2,3946.0,2.112]
[1758819783103,6.15381994,3946.2,3946.0,2.112]
[1758819783298,5.626944,3946.1,3946.0,2.112]
[1758819783531,4.235472,3946.0,3945.8,0.002]
[1758819783702,2.27787194,3945.9,3945.8,0.002]
[1758819783904,0.02687594,3945.9,3945.8,0.002]
[1758819784928,19.89655308,3945.9,3945.8,0.002]
[1758819785225,15.88180209,3945.9,3945.8,0.002]
[1758819785391,6.84612008,3945.9,3945.8,0.002]
[1758819785597,6.65142008,3945.9,3945.8,0.002]
[1758819786026,9.82287508,3945.9,3945.8,0.002]
[1758819786326,10.01757508,3945.9,3945.8,0.002]
[1758819786699,8.76501908,3945.9,3945.8,0.002]
[1758819786933,9.51168208,3945.9,3945.8,0.002]
[1758819787133,5.588686,3945.9,3945.8,0.002]
[1758819787296,3.827828,3945.9,3945.8,0.002]
[1758819787502,2.53417965,3946.1,3945.8,0.002]
[1758819787707,11.99637494,3946.0,3945.8,0.002]
[1758819788008,2.53417965,3946.1,3945.8,0.002]
[1758819788316,14.7624116,3946.0,3945.8,0.002]
[1758819788516,3.664957,3945.9,3945.8,0.002]
[1758819788721,8.85603094,3946.1,3945.8,0.002]
[1758819788919,2.53427608,3945.9,3945.8,0.002]
[1758819789098,18.71021102,3945.9,3945.8,0.002]
[1758819789299,24.59064708,3945.9,3945.8,0.002]
[1758819790097,11.75543646,3945.9,3945.8,0.002]
[1758819790505,6.32646877,3945.6,3945.5,0.002]
[1758819790805,7.05199339,3945.5,3945.4,0.002]
[1758819791033,37.24669339,3945.5,3945.4,0.002]
[1758819791205,6.32672574,3945.2,3945.1,0.002]
[1758819791407,11.19876975,3945.2,3945.1,0.002]
[1758819791628,43.52649457,3945.2,3945.1,0.002]
[1758819792010,2.53478999,3945.1,3943.9,0.002]
[1758819792213,6.32698276,3944.8,3943.9,0.002]
[1758819792415,10.83498276,3944.8,3943.9,0.002]
[1758819792620,41.77615672,3944.8,3943.9,0.002]
[1758819793018,16.53021096,3944.8,3943.9,0.2517]
[1758819793224,36.32698276,3944.8,3944.1,0.4294]
[1758819793422,36.32698276,3944.8,3944.2,0.2497]
[1758819793623,33.45575576,3944.8,3943.9,0.002]
[1758819794220,27.99953976,3944.8,3943.9,0.002]
[1758819794422,12.914034,3944.8,3944.1,0.2497]
[1758819794643,2.53460252,3945.4,3944.7,0.6811]
[1758819794836,2.75715894,3945.3,3944.7,3.21609237]
[1758819795151,8.171591,3945.2,3944.7,3.21612842]
[1758819795355,3.65668994,3945.1,3944.7,0.002]
[1758819795564,6.410605,3945.0,3944.7,0.002]
[1758819795856,2.79082294,3944.9,3944.7,0.4314]
[1758819796014,7.006403,3944.8,3944.7,0.4314]
[1758819796441,3.60808466,3945.2,3944.7,0.4314]
[1758819796442,9.325699,3945.1,3944.7,0.4314]
[1758819796743,5.93377294,3945.0,3944.8,0.6791]
[1758819796949,4.508,3945.4,3944.9,0.6791]
[1758819797135,0.02687594,3945.3,3944.9,0.6791]
[1758819797447,4.35406694,3945.3,3944.9,0.6791]
[1758819797608,0.1264,3944.9,3944.7,0.002]
[1758819797817,0.02687594,3944.8,3944.7,0.002]
[1758819798036,7.922129,3944.8,3944.7,0.6811]
[1758819798344,6.382983,3945.1,3944.7,0.6811]
[1758819798546,3.04816294,3945.0,3944.7,0.4314]
[1758819798747,5.515464,3944.9,3944.7,0.2517]
[1758819798910,2.78687594,3944.8,3944.7,0.4314]
[1758819799113,0.02687594,3944.8,3944.7,0.4314]
[1758819799316,4.87008894,3945.1,3944.7,0.4314]
[1758819799544,4.66410394,3945.0,3944.8,0.6791]
[1758819799709,0.02687594,3945.0,3944.8,0.6791]
[1758819799912,2.56154413,3945.3,3944.8,0.6791]
[1758819800146,5.47274413,3945.3,3944.8,0.6791]
[1758819800346,3.831881,3945.2,3944.8,0.6791]
[1758819800514,2.61746894,3945.1,3944.8,3.21407684]
[1758819800716,3.312677,3945.0,3944.8,0.4294]
[1758819800917,0.02687594,3944.9,3944.8,0.6791]
[1758819801132,5.57881394,3944.9,3944.8,0.6791]
[1758819801467,5.57881394,3944.9,3944.7,0.002]
[1758819801468,0.1264,3944.8,3944.7,0.002]
[1758819801664,2.76402294,3944.8,3944.7,2.96644702]
[1758819801950,0.15327594,3944.8,3944.7,3.21614702]
[1758819802263,0.1264,3944.8,3944.7,3.24149749]
[1758819802432,0.1264,3944.8,3944.7,4.51008853]
[1758819802628,0.1264,3944.8,3944.7,6.8707]
[1758819802961,0.1264,3944.8,3944.7,4.7577]
[1758819803161,0.1264,3944.8,3944.7,0.2517]
[1758819803362,6.32698276,3944.8,3944.7,0.002]
[1758819803669,6.32698276,3944.8,3944.5,0.56909955]
[1758819803670,6.32711129,3944.6,3944.5,0.56909955]
[1758819803956,6.6862803,3944.6,3944.5,0.56909955]
[1758819804168,36.8809803,3944.6,3944.5,0.56909955]
[1758819804649,36.32711129,3944.6,3944.5,0.56909955]
[1758819805450,36.91944997,3944.6,3944.5,0.56909955]
[1758819805615,37.27861898,3944.6,3944.5,0.56909955]
[1758819805816,3.32723983,3944.4,3944.3,0.002]
[1758819806049,33.14550177,3944.4,3944.3,0.002]
[1758819806250,13.97650383,3944.4,3944.3,0.002]
[1758819806561,6.32723983,3944.4,3944.3,0.002]
[1758819806727,30.09327017,3944.4,3944.3,0.002]
[1758819806950,29.09662617,3944.4,3944.3,0.002]
[1758819807366,14.48443217,3944.4,3944.3,0.002]
[1758819808246,18.98843217,3944.4,3944.3,0.002]
[1758819808458,37.52820617,3944.4,3944.3,0.002]
[1758819808679,35.45417217,3944.4,3944.3,0.002]
[1758819809047,24.44167417,3944.4,3944.3,0.002]
[1758819809244,18.10046017,3944.4,3944.3,0.002]
[1758819809556,22.69624517,3944.4,3944.3,0.002]
[1758819810353,10.95767517,3944.4,3944.3,0.002]
[1758819810754,40.03095717,3944.4,3944.3,0.002]
[1758819810946,40.70495717,3944.4,3944.3,0.002]
[1758819811471,40.43906217,3944.4,3944.3,0.002]
[1758819811651,38.00865517,3944.4,3944.3,0.002]
[1758819812582,40.95767517,3944.4,3944.3,0.002]
[1758819812880,3.32749695,3944.0,3943.9,0.002]
[1758819813089,7.85737289,3944.0,3943.9,0.002]
[1758819813279,19.37029495,3944.0,3943.9,0.002]
[1758819813577,27.34856895,3944.0,3943.9,0.002]
[1758819813883,25.63085695,3944.0,3943.9,0.002]
[1758819814050,20.83839895,3944.0,3943.9,0.002]
[1758819814377,10.92685895,3944.0,3943.9,0.002]
[1758819814584,21.18913695,3944.0,3943.9,0.002]
[1758819814876,21.67255895,3944.0,3943.9,0.002]
[1758819815078,19.81350995,3944.0,3943.9,0.002]
[1758819815449,2.53575413,3943.6,3943.5,0.002]
[1758819815783,13.66433951,3943.6,3943.5,0.002]
[1758819815980,43.85903951,3943.6,3943.5,0.002]
[1758819816280,44.06211581,3943.6,3943.5,0.002]
[1758819816850,44.06611581,3943.6,3943.5,0.002]
[1758819817051,44.54000541,3943.6,3943.5,0.002]
[1758819817793,3.32801136,3943.2,3943.1,0.002]
[1758819817955,6.32833296,3942.7,3942.2,0.002]
[1758819818156,12.94333296,3942.7,3942.2,0.002]
[1758819818381,5.53659031,3942.3,3942.2,0.002]
[1758819818894,40.03859031,3942.3,3942.2,0.002]
[1758819819198,55.3360603,3942.3,3942.2,0.002]
[1758819819422,55.88817667,3942.3,3942.2,0.002]
[1758819819725,56.286132,3942.3,3942.2,0.002]
[1758819819906,56.5693216,3942.3,3942.2,0.002]
[1758819820112,56.3786216,3942.3,3942.2,0.002]
[1758819820292,56.3746216,3942.3,3942.2,0.002]
[1758819821230,6.32884771,3941.9,3940.9,0.4548]
[1758819821383,11.19226408,3941.9,3940.6,0.4548]
[1758819821585,2.53755582,3940.8,3940.7,0.2368]
[1758819821804,2.53755582,3940.8,3940.6,0.4548]
[1758819821805,2.53762021,3940.7,3940.6,0.4548]
[1758819822125,23.01924115,3940.7,3940.6,0.4548]
[1758819822432,3.32974901,3940.5,3940.4,0.2368]
[1758819822606,3.35662495,3940.5,3940.4,0.2368]
[1758819822953,17.12230494,3940.5,3940.4,0.6916]
[1758819823241,7.60171,3940.5,3940.4,0.6916]
[1758819823392,13.47975,3940.5,3940.4,0.6916]
[1758819823581,10.335241,3940.5,3940.4,0.6916]
[1758819823787,4.502,3940.9,3940.5,2.53773503]
[1758819823986,0.02687594,3940.8,3940.6,0.6916]
[1758819824212,0.792,3941.1,3939.9,2.114]
[1758819824213,2.804158,3940.7,3940.3,2.53781514]
[1758819824416,0.02687594,3940.6,3940.3,2.53781514]
[1758819824591,5.36557694,3940.8,3940.3,2.53781514]
[1758819824811,2.19561894,3940.7,3940.4,0.6916]
[1758819824995,4.030453,3940.6,3940.5,0.2368]
[1758819825185,4.110453,3940.6,3939.9,2.114]
[1758819825386,3.81772494,3940.5,3940.3,2.5378359]
[1758819825636,0.02687594,3940.5,3940.4,0.2368]
[1758819825820,5.24564594,3940.9,3940.4,0.6916]
[1758819826129,5.24564594,3940.9,3939.9,4.502]
[1758819826130,2.53762519,3940.7,3939.6,0.1264]
[1758819826284,16.5194716,3940.9,3939.8,2.114]
[1758819826285,0.1264,3940.4,3939.8,2.114]
[1758819826625,0.1264,3940.0,3939.9,2.53813548]
[1758819826938,0.1264,3940.0,3939.9,3.22973548]
[1758819827546,8.875669,3940.0,3939.9,0.6916]
[1758819827730,3.67942896,3940.0,3939.9,0.2368]
[1758819827934,3.67942896,3940.0,3939.5,0.4548]
[1758819827935,2.53829444,3939.7,3939.5,0.6916]
[1758819828137,28.81170494,3939.6,3939.5,0.2368]
[1758819828308,2.53841069,3939.5,3939.1,0.6916]
[1758819828509,0.02687594,3939.4,3939.2,0.4596]
[1758819828705,15.079711,3939.2,3938.8,0.2368]
[1758819828908,6.22229494,3939.1,3938.9,0.6916]
[1758819829107,0.792,3939.5,3939.0,0.6916]
[1758819829329,0.792,3938.9,3938.1,0.2388]
[1758819829536,18.72288894,3938.8,3938.1,0.2388]
[1758819829710,13.892922,3938.7,3938.1,0.2388]
[1758819829904,4.013305,3938.7,3938.2,0.4548]
[1758819830153,2.71514394,3938.6,3938.3,0.6916]
[1758819830332,0.02687594,3938.6,3938.4,2.53910217]
[1758819830671,4.52787594,3939.1,3938.6,2.5389235]
[1758819830840,3.358058,3939.0,3938.7,0.2368]
[1758819831009,4.501,3939.4,3938.1,0.002]
[1758819831010,3.08187594,3938.9,3938.8,3.23044431]
[1758819831206,0.02687594,3938.9,3938.5,0.2368]
[1758819831436,0.02687594,3939.2,3938.7,2.53888877]
[1758819831738,0.02687594,3939.2,3938.9,2.53872738]
[1758819831952,0.02687594,3939.3,3939.0,0.6916]
[1758819832155,0.02687594,3939.2,3939.1,0.6916]
[1758819832354,3.02687594,3939.6,3939.1,0.6916]
[1758819832519,7.76296094,3939.6,3939.1,0.6916]
[1758819832719,0.792,3939.4,3938.1,0.002]
[1758819832937,5.54265394,3939.3,3938.8,0.2368]
[1758819833134,8.296825,3938.8,3938.4,0.2368]
[1758819833337,3.65207294,3938.7,3938.1,0.002]
[1758819833539,15.125867,3938.6,3938.1,0.2388]
[1758819833850,0.02687594,3938.5,3938.1,0.2388]
[1758819834021,26.735775,3938.4,3938.2,0.2368]
[1758819834225,0.792,3939.4,3938.5,2.53901945]
[1758819834424,11.07548583,3939.3,3938.5,2.53901945]
[1758819834655,2.167906,3939.2,3938.6,0.2368]
[1758819834859,0.792,3939.4,3938.7,0.02538908]
[1758819834860,0.02687594,3939.4,3938.7,0.02538908]
[1758819835060,0.02687594,3939.8,3938.8,0.6916]
[1758819835225,6.396646,3939.7,3938.8,4.9558]
[1758819835560,11.21985294,3939.6,3938.8,7.3076]
[1758819835757,4.501,3940.4,3938.9,1.44774779]
[1758819835928,2.53801094,3940.1,3939.3,2.53850877]
[1758819836126,8.29940794,3940.0,3939.4,0.6916]
[1758819836427,2.53821783,3939.8,3939.0,0.6916]
[1758819836752,13.695653,3939.9,3939.0,0.6916]
[1758819836753,9.46141784,3939.7,3939.0,3.23029744]
[1758819837054,4.160478,3939.6,3939.3,2.5384722]
[1758819837257,2.53811609,3940.0,3938.4,2.53908672]
[1758819837438,9.58395408,3939.9,3939.2,2.53856661]
[1758819837639,7.044885,3939.8,3939.2,2.77536661]
[1758819837839,0.02687594,3939.7,3939.3,3.23011337]
[1758819838189,9.3202156,3939.7,3939.4,0.2368]
[1758819838364,0.1264,3939.3,3938.9,0.2368]
[1758819838561,0.1264,3939.3,3939.0,3.23030593]
[1758819838725,6.949727,3939.2,3939.0,0.6916]
[1758819838930,4.325185,3939.2,3939.1,3.23025096]
[1758819839126,0.1264,3939.2,3939.1,4.46865381]
[1758819839324,0.12665071,3940.9,3939.3,2.53846926]
[1758819839550,0.1264,3939.7,3939.2,0.6916]
[1758819839748,2.53774901,3940.5,3939.4,7.03841512]
[1758819839962,2.53774901,3940.5,3938.9,0.2368]
[1758819839963,0.792,3940.3,3938.9,0.2368]
[1758819840167,0.792,3940.0,3939.0,6.615]
[1758819840334,15.03863994,3939.9,3938.9,0.2368]
[1758819840529,18.413475,3939.8,3939.1,4.5]
[1758819840835,2.53766387,3940.7,3939.7,2.53821628]
[1758819841037,3.0,3940.5,3939.8,5.1906]
[1758819841242,4.61080994,3940.6,3939.8,5.1906]
[1758819841243,6.05201494,3940.4,3940.0,2.53806933]
[1758819841452,3.0,3940.6,3940.1,0.2368]
[1758819841453,5.737139,3940.3,3940.1,0.2368]
[1758819841751,0.02687594,3940.2,3939.9,4.499]
[1758819841963,0.792,3941.3,3940.0,0.6916]
[1758819842158,11.44191794,3941.2,3940.3,2.53785533]
[1758819842440,3.21423594,3941.1,3940.4,0.6916]
[1758819842636,2.010743,3941.0,3940.5,0.2368]
[1758819842842,0.02687594,3940.9,3940.5,0.2368]
[1758819843060,0.02687594,3940.9,3940.6,0.6858]
[1758819843061,2.014568,3940.8,3940.6,0.6858]
[1758819843263,0.02687594,3940.7,3940.6,0.6858]
[1758819843542,7.79793194,3940.7,3940.6,0.6858]
[1758819843762,7.177056,3940.7,3940.6,0.6858]
[1758819843963,0.792,3941.1,3938.6,0.002]
[1758819844272,0.792,3940.8,3939.4,2.54043419]
[1758819844441,0.792,3940.6,3939.6,2.53828332]
[1758819844638,20.22581394,3940.5,3939.6,2.53828332]
[1758819844952,3.25279,3939.6,3939.5,2.3643]
[1758819845138,4.995244,3940.4,3939.7,2.538208]
[1758819845335,0.02687594,3940.3,3939.7,2.538208]
[1758819845566,8.32145194,3940.3,3939.5,0.6858]
[1758819845771,2.53813494,3940.0,3939.5,0.2493]
[1758819846068,2.166932,3939.9,3939.6,0.6858]
[1758819846258,2.166932,3939.9,3939.7,0.6858]
[1758819846469,10.667924,3939.7,3939.5,3.0]
[1758819846640,5.675224,3939.5,3939.4,0.002]
[1758819846849,21.937129,3939.5,3939.4,0.002]
[1758819847043,2.53839319,3939.5,3939.4,0.002]
[1758819847345,14.43051313,3939.5,3939.4,0.002]
[1758819847556,18.60251547,3939.5,3939.4,0.002]
[1758819847870,18.79721547,3939.5,3939.4,0.002]
[1758819848080,35.22197147,3939.5,3939.4,0.002]
[1758819848288,27.86154047,3939.5,3939.4,0.002]
[1758819848843,26.05889847,3939.5,3939.4,0.002]
[1758819849072,35.22197147,3939.5,3939.4,0.002]
[1758819850040,5.22197147,3939.5,3939.4,0.002]
[1758819850358,35.22197147,3939.5,3939.4,0.002]
[1758819850763,38.22197147,3939.5,3939.4,0.002]
[1758819850972,27.78668247,3939.5,3939.4,0.002]
[1758819851170,5.810091,3939.5,3939.4,0.002]
[1758819851372,8.34848419,3939.5,3939.4,0.002]
[1758819851940,3.242119,3939.5,3939.4,0.002]
[1758819852149,16.24159513,3939.5,3939.4,0.002]
[1758819852371,16.21471919,3939.5,3939.4,0.002]
[1758819852572,12.451337,3939.5,3939.4,0.002]
[1758819852772,14.98973019,3939.5,3939.4,0.002]
[1758819853141,29.11322619,3939.5,3939.4,0.002]
[1758819853347,32.46694112,3939.5,3939.4,0.002]
[1758819854163,36.87880812,3939.5,3939.4,0.002]
[1758819854476,37.24022449,3939.5,3939.4,0.002]
[1758819855076,42.94639319,3939.5,3939.4,0.002]
[1758819855249,43.88902233,3939.5,3939.4,0.002]
[1758819855570,44.2504387,3939.5,3939.4,0.002]
[1758819856352,44.2504387,3939.5,3939.0,1e-08]
[1758819856353,6.33065096,3939.1,3939.0,1e-08]
[1758819856549,12.80021756,3939.1,3939.0,1e-08]
[1758819856880,42.99491756,3939.1,3939.0,1e-08]
[1758819857079,13.39316027,3939.1,3939.0,1e-08]
[1758819857454,43.39316027,3939.1,3939.0,1e-08]
[1758819858982,3.33090877,3938.7,3938.6,0.002]
[1758819859190,43.93595833,3938.7,3938.6,0.002]
[1758819859395,44.81891369,3938.7,3938.6,0.002]
[1758819859691,45.21719978,3938.7,3938.6,0.002]
[1758819861165,15.21719978,3938.7,3938.6,0.002]
[1758819861694,0.792,3936.5,3934.2,0.003]
[1758819861863,3.792,3936.3,3935.3,0.4629]
[1758819862065,3.0,3936.1,3935.4,0.228]
[1758819862289,30.0,3935.4,3935.0,0.228]
[1758819862464,7.88452864,3936.0,3934.2,0.003]
[1758819862465,7.78313594,3935.3,3935.1,0.6909]
[1758819862683,0.1264,3935.1,3934.2,0.02841812]
[1758819862883,0.792,3935.8,3934.2,0.02841812]
[1758819862884,0.37294325,3936.4,3934.2,0.25549993]
[1758819863083,0.1264,3935.0,3934.7,2.54145544]
[1758819863257,0.02687594,3935.8,3934.9,2.54134219]
[1758819863457,3.02687594,3936.1,3935.0,0.6909]
[1758819863669,0.02687594,3936.1,3935.1,0.6909]
[1758819863873,1.781054,3936.0,3935.3,2.54108749]
[1758819864070,0.02687594,3936.0,3935.5,2.54097283]
[1758819864272,0.02687594,3936.5,3935.6,0.6909]
[1758819864455,2.59881294,3936.5,3935.8,2.5407449]
[1758819864661,0.02687594,3936.5,3936.0,2.54063528]
[1758819864874,0.02687594,3936.5,3936.1,0.6909]
[1758819865075,0.02687594,3936.5,3936.1,1.01405261]
[1758819865399,0.397063,3936.6,3936.2,0.6909]
[1758819865691,0.397063,3936.6,3936.4,2.54038939]
[1758819865892,0.397063,3936.6,3936.5,0.6909]
[1758819866065,0.397063,3936.6,3936.5,3.2312277]
[1758819866389,0.397063,3936.6,3936.5,0.6909]
[1758819866594,0.397063,3936.6,3936.5,3.2312277]
[1758819866793,0.397063,3936.6,3936.5,0.6909]
[1758819867168,26.166403,3936.6,3936.5,0.6909]
[1758819867484,1.2584353,3936.6,3936.1,0.228]
[1758819867798,2.54044956,3936.4,3936.1,0.4629]
[1758819867992,0.02687594,3936.3,3936.2,0.228]
[1758819868161,3.0,3937.6,3936.2,0.71630521]
[1758819868360,3.17189094,3937.5,3936.3,0.71630456]
[1758819868558,0.02687594,3937.7,3936.4,5.9979]
[1758819868795,0.02687594,3937.7,3936.5,1.31863373]
[1758819869113,2.298102,3937.6,3937.2,2.53985063]
[1758819869315,0.02687594,3938.0,3937.3,0.6909]
[1758819869515,2.53930844,3938.1,3937.4,0.6909]
[1758819869679,2.56630726,3937.9,3937.4,0.6909]
[1758819869871,2.56630726,3937.9,3937.5,0.6909]
[1758819869872,2.829931,3937.8,3937.5,0.6909]
[1758819870068,0.02687594,3937.7,3937.6,0.6909]
[1758819870268,2.04052094,3937.7,3937.6,0.6909]